{"text_format":"3","workbook":"xlsx","n_sheets":3,"sheets":["Командный зачет","Межшкольный зачет","Межшкольный зачет (УО)"],"not_rendered":{"defined_names":3},"read":"whole","date_system":"1900"}

{"sheet":"Командный зачет","index":0,"n_rows":94,"n_cols":11,"rows_kept":94,"merged":[[0,4,0,10],[1,4,1,10],[2,4,2,10],[3,4,3,10],[4,4,4,10],[5,0,5,10],[6,0,6,10],[7,0,7,10],[8,0,8,10],[9,6,9,10],[11,0,11,10],[25,0,25,10],[64,0,64,10]]}
[{"$nulls":4},"УТВЕРЖДАЮ"]
[{"$nulls":4},"Главный судья"]
[]
[{"$nulls":4},"Закирова Л.В."]
[{"$nulls":4},"\" ____ \" ____________ 2019 г."]
["Протокол "]
["командного Первенства Елабужского муниципального района "]
["по лабиринтному ориентированию"]
["«Декабринт – 2019»"]
["Спортивный зал МБОУ \"Средняя школа №6\" ЕМР РТ",{"$nulls":5},"29 ноября 2019 г."]
["№ п/п","Школа","Класс (команда)","Участники","Предствитель команды","Время","Неверная отметка КП","Снятие","Кол-во КП","Место","Примечание"]
["Старшая возрастная группа (8-11 классы)"]
[1,"СОШ №5","8А-3","Ишимова Анна\nЮсупова Аделина\nМинеев Кирилл\nБелоусова Ксения","Хамидуллина А.Н. ","00:01:32",5,0,{"$f":"24-G13-H13","v":19},1]
[2,"СОШ №5","8А-2","Косинцева Юлия\nХолуев Сергей\nШынкаренко Тимур\nУфимцев Ефим","Хамидуллина А.Н. ","00:01:18",3,1,20,2]
[3,"СОШ №3","8Б-3","Алешин Роман\nАхметзянова Арина\nФайзуллин Салават\nАлексеев Никита","Горшунова Е.В. ","00:02:40",7,2,15,3]
[4,"СОШ №5","8А-1","Рахимова Светлана\nКопаков Роман\nДоброхотов Владислав\nДолин Богдан","Хамидуллина А.Н. ","00:01:18",0,4,20,4]
[5,"Гимназия №1 - ЦНО","9А","Раимова Альбина\nМахмутова Лилия\nГумеров Ильяс\nНабиуллин Ильмир","Ибрагимов Р.К.","00:02:00",1,4,19,5]
[6,"СОШ №8","9А","Чегодаева Дарья\nАнашина Валерия\nБеловицкая Диана\nШаммедова Милана","Романенко Е.А. ","00:02:35",5,4,15,6]
[7,"СОШ №3","8Б-4","Маслихин Артур\nБадиров Имран\nКукушкина Ксения\nТерешов Александр","Горшунова Е.В. ","00:02:00",2,5,17,7]
[8,"СОШ №3","8Б-2","Калашникова Татьяна\nМахнев Тимур\nСоловьев Артем\nСмирнов Никон","Горшунова Е.В. ","00:01:44",2,6,16,8]
[9,"СОШ №3","8Б-1","Аюпова Ралина\nТерехин Дмитрий\nКучербаев Данил\nЗотов Даниэль","Горшунова Е.В. ","00:03:00",3,6,15,9]
[10,"СОШ №9","11А,В","Пракудина Полина\nСедунов Никита\nУвин Михаил\nЕфремова Алина","Мальчиков С.А. ","00:01:11",0,8,16,10]
[11,"СОШ №8","8Б","Шадыбаев Максим\nКривоногих Семен\nХайдаров Артур\nШорина Камилла","Романенко Е.А. ","00:01:25",2,8,14,11]
[12,"СОШ №3","8К-1","Капитонов Дмитрий\nНедопекина Анна\nФалалиев Артем\nТихонов Илья","Шафикова Г.Р.","00:02:30",7,0,17,12,"нет сменки"]
[13,"СОШ №3","8К-2","Спиридонов Дмитрий\nХакимова Эльза\nБочкарев Данила\nМакиенко Никита","Малюгин Д.В.","00:01:47",1,5,18,13,"нет сменки"]
["Средняя возрастная группа"]
[1,"СОШ №6","6Б-1","Десятова Анастасия\nТарасова Ангелина \nКобелев Артем\nРябова Динара","Захарова Р.Р.","00:01:49",1,0,{"$f":"24-G27-H27","v":23},1]
[2,"СОШ №10","5В-1","Красильников Дмитрий\nКорольков Владимир\nХанбеков Ратмир\nБарышникова Ксения","Горшунова Е.В. ","00:02:21",2,0,22,2]
[3,"СОШ №3","6К-1","Мансуров Марат\nМокшин Олег\nГилазутдинов Вильдан\nБоловина Дарина","Сидорова А.С.","00:02:06",3,0,21,3]
[4,"Танаевская СОШ","7-2","Бурдин Леонид\nНаседкин Вадим\nРезвякова Елизавета\nПерусова Карина","Клинова А.А.","00:02:41",4,0,20,4]
[5,"СОШ №10","5Б-3","Кишняева Алина\nФахритдинова Софья\nХузин Альмир\nФаткулин Богдан","Саляхова Г.Р.","00:02:49",7,0,17,5]
[6,"Гимназия №4","5Б","Хидирян Эмилия\nШлыкова Виктория\nВассанова Евгения\nАчинцева Элина","Искаков О.В.","00:01:53",8,0,16,6]
[7,"СОШ №10","5Б-2","Хузина Карина\nФилиппова Ульяна\nСафаров Артур\nДерягин Глеб","Саляхова Г.Р.","00:02:59",8,0,16,7]
[8,"СОШ №10","5В-2","Кострюкова Дарья\nБусыгин Виктор\nПашаев Дмитрий\nЗахаров Даниил","Горшунова Е.В. ","00:02:41",10,0,14,8]
[9,"СОШ №3","6К-3","Газизов Радий\nДолгов Данил\nХузахметов Амир\nБелянина Ангелина","Сидорова А.С.","00:01:52",6,1,17,9]
[10,"СОШ №3","6К-2","Карманов Артем\nШарифуллин Раиль\nКонюхов Кирилл\nЗакирова Алина","Сидорова А.С.","00:02:32",6,1,17,10]
[11,"СОШ №6","6Б-3","Дресвянникова Алина\nМакарова Анна\nТалыпов Аяз\nСоловьев Даниил","Захарова Р.Р.","00:01:50",7,1,16,11]
[12,"СОШ №3","5А-1","Вахитов Галимджан\nНужин Адель\nШумилина Ксения\nБуханов Дмитрий","Михайлова Р.З.","00:02:04",7,1,16,12]
[13,"СОШ №1","5Б-2","Кудрявцева Татьяна\nГиздатуллина Лейла\nРезвяков Станислав\nМартынов Данил","Лемасова Р.М.","00:02:52",8,1,15,13]
[14,"СОШ №2","7Б-1","Ермошкин Федор\nБикмухаметов Наиль\nАлиева Диляра\nЧиркунова Лидия","Горшунова Е.В. ","00:01:09",3,2,19,14]
[15,"Гимназия №4","5Б-4","Медведев Иван\nКривова Полина\nШтерц Анна\nКашеварова Анастасия","Искаков О.В.","00:02:18",4,2,18,15]
[16,"СОШ №1","5Б-3","Гимазетдинов Ильдар\nНебогатов Артур\nКрасильникова Софья\nПопова Ангелина","Лемасова Р.М.","00:03:00",5,3,16,16]
[17,"СОШ №2","7Б-2","Нутфуллин Тимур\nСидахметов Савелий\nПелымская Диана\nСалимуллина Алсу","Горшунова Е.В. ","00:01:24",5,4,15,17]
[18,"СОШ №6","6Б-2","Ишаева Светлана\nДерябин Артем\nЩербенева Арина\nЛожкин Никита","Захарова Р.Р.","00:01:40",7,4,13,18]
[19,"СОШ №8","6Б","Башаров Карим\nЧернова Валерия\nАшрапов Фарид\nБыков Иван","Михайлова Р.З.","00:02:28",2,5,17,19]
[20,"СОШ №3","5К-1","Аюпов Расим\nГалеев Рамиль\nГородецкий Халев\nШидков Богдан","Васильева И.В.","00:03:00",3,5,16,20]
[21,"СОШ №3","7Б","Мыльникова Екатерина\nКоробейникова Ксения\nАхметшина Эльвира\nКалугина Валерия","Хакова Р.Р.","00:02:07",6,5,13,21]
[22,"СОШ №3","5А-2","Каримов Тимур\nГабидуллина Амира\nМаликов Виктор\nЯрославцев Иван","Михайлова Р.З.","00:02:07",1,6,17,22]
[23,"СОШ №1","5Б","Полянцева Елизавета\nКулькина Полина\nСавина Вероника\nТазиева Карина","Лемасова Р.М.","00:02:18",2,6,16,23]
[24,"Юлдаш","ср.","Шубин Никита\nЯтов Максим\nКамнева Арина\nВасильев Арсений","Исмагилова В.Н.","00:02:58",3,6,15,24]
[25,"Гимназия №4","5Б","Максумов Амир\nЗакиров Айдар\nПарунина Камила\nГибадуллин Ильназ","Искаков О.В.","00:02:02",5,6,13,25]
[26,"СОШ №10","5В-3","Тарасова Ирина\nКассин Ярослав\nБочкарев Андрей\nРоскина Анна","Горшунова Е.В. ","00:01:21",1,7,16,26]
[27,"СОШ №1","6А","Сафронова София\nСмирнова Вика\nКасеев Богдан\nНебогатов Роман","Степанова О.Н.","00:01:41",2,7,15,27]
[28,"Танаевская СОШ","7-1","Клинов Ярослав\nМорковкин Кирилл\nМагасумова Милана\nКаликова Влада","Клинова А.А.","00:02:22",0,9,15,28]
[29,"СОШ №8","5А","Хисматова Камилла\nЕрошев Георгий\nГаниева Амелия\nКамалов Ратмир","Филиппов Л.А.","00:01:38",2,9,13,29]
[30,"СОШ №3","5К-1","Абрамов Никита\nАникин Максим\nАнтонов Антон\nГанеев Рамиль","Васильева И.В.","00:02:43",1,10,13,30]
[31,"СОШ №1","7А","Самарханов Валентин\nТавабиев Никита\nОзерова Аделина\nСалахутдинова Аделина","Невмержицкая Т.А.","00:03:00",1,10,13,31]
[32,"СОШ №10","7Б","Ахтямов Ильназ\nБадикова Варвара\nИзмайлов Эмиль\nГарипов Булат","Ашкарова Л.М.","00:02:15",2,10,12,32]
[33,"СОШ №5","5А","Русаков Никита\nТрошина Екатерина\nМамедов Раджаб\nИсхакова Наиля","Мифтахова А.А.","00:01:10",3,10,11,33]
[34,"СОШ №8","5Б-1","Николаева Анастасия\nМарфина Анастасия\nАгаева Назрин\nСадретдинов Раиль","Михайлова Р.З.","00:01:29",3,10,11,34]
[35,"СОШ №10","5Б-1","Мавлиева Адиля\nЯмаева Анна\nБелкова Ксения\nВалеев Тимур","Саляхова Г.Р.","00:01:42",6,10,8,35]
[36,"СОШ №9","5Б","Крешков Игорь\nМагай Никита\nМуртазин Шамиль\nХамидуллина Элина","Мальчиков С.А. ","00:01:15",8,10,6,36]
[37,"Гимназия №4","5Б-3","Якимов Сергей\nКосолапов Иван\nЗаболонский Иван\nВагапова Самира","Искаков О.В.","00:01:45",2,11,11,37]
[38,"Гимназия №1 - ЦНО","6Б","Кадырова Хаят\nАзизов Мехроб\nПрокопьева Илона\nМахмутова Алия","Ибрагимов Р.К.","00:02:25",0,13,11,38]
["Младшая возрастная группа"]
[1,"СОШ №5","4А-4","Однакина Анастасия\nЯмалетдинов Карим\nГайнуллин Богдан\nСавин Захар","Хамидуллина А.Н. ","00:02:02",2,2,{"$f":"24-G66-H66","v":20},1]
[2,"СОШ №1","3А-1","Валиева Ангелина\nВалиев Радмир\nГазизов Руслан\nХакимов Эмиль","Степанова О.Н.","00:03:00",4,2,18,2]
[3,"СОШ №10","4К-1","Аксареева Виктория\nПензина Виктория\nИвлеева Ульяна\nХусаинов Ренат","Горшунова Е.В. ","00:03:00",7,2,15,3]
[4,"СОШ №3","4А-2","Кузнецов Дмитрий\nЛощаков Роман\nСакибов Рахим\nРаджабова Кристина","Пчельникова Н.В.","00:03:00",5,3,16,4]
[5,"СОШ №1","1Б-4","Антонова Дарина\nКудрявцева Таисия\nВалиуллин Исламнур\nВагизов Вильдан","Лемасова Р.М.","00:03:00",10,4,10,5]
[6,"СОШ №8","3А-4В","Хасанов Ильфат\nПеревозчиков Владислав\nСаликаева Кира\nЗайцев Вячеслав","Исмагилова В.Н.","00:03:00",5,5,14,6]
[7,"СОШ №3","4Б-2","Голованов Федор\nСимонов Роман\nЗахарова Варвара\nБельцова Арина","Певцаева А.Г.","00:01:35",6,5,13,7]
[8,"Танаевская СОШ","2-1","Клинов Елизар\nКрасильников Никита\nМиннахметова Азалия\nАйкашева Дарья","Клинова А.А.","00:02:35",7,5,12,8]
[9,"СОШ №3","4Б-1","Иванова Милена\nФаттахеев Дмитрий\nКарпов Глеб\nВакуева Юлия","Певцаева А.Г.","00:01:31",11,5,8,9]
[10,"ООШ №11","2-4","Гизатуллина Элина\nШарипова Валерия\nБиджосян Давид\nИльясов Инсаф","Лобанова Л.А.","00:02:35",3,6,15,10]
[11,"Танаевская СОШ","2-2","Стрыганов Илья\nМарханов Вадим\nПерусова Екатерина\nВафина София","Клинова А.А.","00:02:41",1,7,16,11]
[12,"СОШ №10","4К-2","Зайнулин Артур\nМаксимова Кира\nРобышев Данияр\nБазуев Леонид","Горшунова Е.В. ","00:02:07",4,7,13,12]
[13,"СОШ №1","1Б-1","Сабирова Элина\nРезвякова Камилла\nТепляков Марк\nБекбулатов Руслан","Лемасова Р.М.","00:03:00",7,7,10,13]
[14,"СОШ №3","4А-1","Ефремов Кирилл\nЕфремова Софья\nМинуллина Лия\nВдовин Артем","Пчельникова Н.В.","00:02:57",3,8,13,14]
[15,"СОШ №5","4А-3","Бородина Ангелина\nГурьев Кирилл\nМеркурьев Егор\nГорячева Софья","Хамидуллина А.Н. ","00:02:28",3,9,12,15]
[16,"СОШ №5","4А-5","Волкова Яна\nКосинцев Кирилл\nЯмалетдинов Азат\nШевнина Эвелина","Хамидуллина А.Н. ","00:01:05",2,10,12,16]
[17,"СОШ №1","2Б-2","Горячкина Полина\nОвечкина Арина\nКузнецов Егор\nХамидуллина Эльзана","Степанова О.Н.","00:01:58",3,10,11,17]
[18,"СОШ №1","2Б-1","Бородкина Софья\nПолтанова Ирина\nПолтанова Марина\nШумилов Родион","Степанова О.Н.","00:01:34",4,10,10,18]
[19,"СОШ №6","4Б","Ермошкин Иван\nТюняев Илья\nЗиганшин Адель\nАхтямов Тимур","Исмагилова В.Н.","00:02:14",5,10,9,19]
[20,"СОШ №5","4А-2","Сушкова Елизавета\nФедоров Никита\nПрилуцкий Богдан\nРубан Илья","Хамидуллина А.Н. ","00:01:20",3,11,10,20]
[21,"СОШ №1","2В-1","Ковалева Екатерина\nСоловьева Карина\nСмирнова Вероника\nЩербакова Алена","Степанова О.Н.","00:03:00",0,12,12,21]
[22,"СОШ №1","1Б-2","Немтырева Анна\nАшмасова Карина\nБалобанов Игорь\nГатауллин Амирхан","Лемасова Р.М.","00:03:00",2,12,10,22]
[23,"СОШ №5","4А-1","Пальчик Елизавета\nУстьянцев Леонид\nМохначев Богдан\nЛьдоков Александр","Хамидуллина А.Н. ","00:01:24",4,12,8,23]
[24,"СОШ №1","1Б-3","Диюнова Виктория\nДесятова Алена\nПупышев Роман\nПупышев Демид","Лемасова Р.М.","00:02:59",4,15,5,24]
[25,"СОШ №1","2А-1","Рожин Александр\nВолкова Валерия\nИванушкин Тимур\nПарамонова Милана","Степанова О.Н.","00:00:55",1,20,3,25]
[26,"Юлдаш","мл.","Соколов Вадим\nМазитов Артем\nВалиев Арслан\nТюняев Илья","Закирова Л.В.","00:02:04",6,1,{"$f":"24-G91-H91","v":17},26,"нет девочек"]
[27,"СОШ №1","3А-2","Гаимов Станислав\nТаранников Владислав\nМихайлов Вячеслав\nЗотин Михаил","Степанова О.Н.","00:01:15",3,16,{"$f":"24-G92-H92","v":5},27,"нет девочек"]
[]
[null,"Главный секретарь",null,null,"Захарова Р.Р."]

{"sheet":"Межшкольный зачет","index":1,"n_rows":42,"n_cols":10,"rows_kept":42,"merged":[[0,4,0,9],[1,4,1,9],[2,4,2,8],[3,4,3,9],[4,4,4,9],[5,0,5,9],[6,0,6,9],[7,0,7,9],[8,0,8,9],[9,0,9,9],[10,6,10,9],[12,0,12,9],[13,0,14,0],[13,1,14,1],[13,8,14,8],[13,9,14,9],[15,0,16,0],[15,1,16,1],[15,8,16,8],[15,9,16,9],[17,0,18,0],[17,1,18,1],[17,8,18,8],[17,9,18,9],[19,0,20,0],[19,1,20,1],[19,8,20,8],[19,9,20,9],[21,0,22,0],[21,1,22,1],[21,8,22,8],[21,9,22,9],[23,0,24,0],[23,1,24,1],[23,8,24,8],[23,9,24,9],[25,0,26,0],[25,1,26,1],[25,8,26,8],[25,9,26,9],[27,0,28,0],[27,1,28,1],[27,8,28,8],[27,9,28,9],[29,0,30,0],[29,1,30,1],[29,8,30,8],[29,9,30,9],[30,2,30,4],[31,0,32,0],[31,1,32,1],[31,8,32,8],[31,9,32,9],[32,2,32,4],[33,0,33,9],[34,0,35,0],[34,1,35,1],[34,8,35,8],[34,9,35,9],[36,0,37,0],[36,1,37,1],[36,8,37,8],[36,9,37,9],[37,2,37,4],[38,0,38,9],[39,0,40,0],[39,1,40,1],[39,8,40,8],[39,9,40,9],[41,1,41,2]]}
[{"$nulls":4},"УТВЕРЖДАЮ"]
[{"$nulls":4},"Главный судья"]
[]
[{"$nulls":4},"Закирова Л.В."]
[{"$nulls":4},"\" ____ \" ____________ 2019 г."]
["Протокол "]
["командного Первенства Елабужского муниципального района "]
["по лабиринтному ориентированию"]
["«Декабринт – 2019»"]
["ЗАЧЕТ СРЕДИ ОБРАЗОВАТЕЛЬНЫХ ОРГАНИЗАЦИЙ"]
["Спортивный зал МБОУ \"Средняя школа №6\" ЕМР РТ"]
["№ п/п","Школа","Класс (команда)","Участники","Предствитель команды","Время","Кол-во КП","Место","Сумма мест","МЕСТО"]
["ГОРОДСКИЕ ШКОЛЫ"]
[1,"СОШ №5","8А-3","Ишимова Анна\nЮсупова Аделина\nМинеев Кирилл\nБелоусова Ксения","Хамидуллина А.Н. ","00:01:32",19,1,{"$f":"H14+H15","v":2},"I"]
[null,null,"4А-4","Однакина Анастасия\nЯмалетдинов Карим\nГайнуллин Богдан\nСавин Захар","Хамидуллина А.Н. ","00:02:02",20,1]
[2,"СОШ №10","5В-1","Красильников Дмитрий\nКорольков Владимир\nХанбеков Ратмир\nБарышникова Ксения","Горшунова Е.В. ","00:02:21",22,2,{"$f":"H16+H17","v":5},"II"]
[null,null,"4К-1","Аксареева Виктория\nПензина Виктория\nИвлеева Ульяна\nХусаинов Ренат","Горшунова Е.В. ","00:03:00",15,3]
[3,"СОШ №3","8Б-3","Алешин Роман\nАхметзянова Арина\nФайзуллин Салават\nАлексеев никита","Горшунова Е.В. ","00:02:40",15,3,{"$f":"H18+H19","v":6},"III"]
[null,null,"6К-1","Мансуров Марат\nМокшин Олег\nГилазутдинов Вильдан\nБоловина Дарина","Сидорова А.С.","00:02:06",21,3]
[4,"СОШ №8","9А","Чегодаева Дарья\nАнашина Валерия\nБеловицкая Диана\nШаммедова Милана","Романенко Е.А. ","00:02:35",15,6,{"$f":"H20+H21","v":12},4]
[null,null,"3А-4В","Хасанов Ильфат\nПеревозчиков Владислав\nСаликаева Кира\nЗайцев Вячеслав","Исмагилова В.Н.","00:03:00",14,6]
[5,"СОШ №1","3А-1","Валиева Ангелина\nВалиев Радмир\nГазизов Руслан\nХакимов Эмиль","Степанова О.Н.","00:03:00",18,2,{"$f":"H22+H23","v":15},5]
[null,null,"5Б-2","Кудрявцева Татьяна\nГиздатуллина Лейла\nРезвяков Станислав\nМартынов Данил","Лемасова Р.М.","00:02:52",15,13]
[6,"СОШ №6","6Б-1","Десятова Анастасия\nТарасова Ангелина \nКобелев Артем\nРябова Динара","Захарова Р.Р.","00:01:49",23,1,{"$f":"H24+H25","v":20},6]
[null,null,"4Б","Ермошкин Иван\nТюняев Илья\nЗиганшин Адель\nАхтямов Тимур","Исмагилова В.Н.","00:02:14",9,19]
[7,"Гимназия №1 - ЦНО","9А","Раимова Альбина\nМахмутова Лилия\nГумеров Ильяс\nНабиуллин Ильмир","Ибрагимов Р.К.","00:02:00",19,5,{"$f":"H26+H27","v":43},7]
[null,null,"6Б","Кадырова Хаят\nАзизов Мехроб\nПрокопьева Илона\nМахмутова Алия","Ибрагимов Р.К.","00:02:25",11,38]
[8,"СОШ №9","11А,В","Пракудина Полина\nСедунов Никита\nУвин Михаил\nЕфремова Алина","Мальчиков С.А. ","00:01:11",16,10,{"$f":"H28+H29","v":46},8]
[null,null,"5Б","Крешков Игорь\nМагай Никита\nМуртазин Шамиль\nХамидуллина Элина","Мальчиков С.А. ","00:01:15",6,36]
[9,"Гимназия №4","5Б-1","Хидирян Эмилия\nШлыкова Виктория\nВассанова Евгения\nАчинцева Элина","Искаков О.В.","00:01:53",16,6,{"$f":"H30+H31","v":6},9]
[null,null,"Результат другой возрастной группы"]
[10,"СОШ №2","7Б-1","Ермошкин Федор\nБикмухаметов Наиль\nАлиева Диляра\nЧиркунова Лидия","Горшунова Е.В. ","00:01:09",19,14,{"$f":"H32+H33","v":14},10]
[null,null,"Результат другой возрастной группы"]
["СЕЛЬСКИЕ ШКОЛЫ"]
[1,"Танаевская СОШ","7-2","Бурдин Леонид\nНаседкин Вадим\nРезвякова Елизавета\nПерусова Карина","Клинова А.А.","00:02:41",20,4,{"$f":"H35+H36","v":12},"I"]
[null,null,"2-1","Клинов Елизар\nКрасильников Никита\nМиннахметова Азалия\nАйкашева Дарья","Клинова А.А.","00:02:35",12,8]
[2,"ООШ №11","2-4","Гизатуллина Элина\nШарипова Валерия\nБиджосян Давид\nИльясов Инсаф","Лобанова Л.А.","00:02:35",15,10,10,"II"]
[null,null,"Результат другой возрастной группы"]
["УЧРЕЖДЕНИЯ ДОПОЛНИТЕЛЬНОГО ОБРАЗОВАНИЯ"]
[1,"Юлдаш","ср.","Шубин Никита\nЯтов Максим\nКамнева Арина\nВасильев Арсений","Исмагилова В.Н.","00:02:58",15,24,{"$f":"H40+H41","v":50},"I"]
[null,null,"мл.","Соколов Вадим\nМазитов Артем\nВалиев Арслан\nТюняев Илья","Закирова Л.В.","00:02:04",17,26]
[null,"Главный секретарь",null,null,"Захарова Р.Р."]

{"sheet":"Межшкольный зачет (УО)","index":2,"n_rows":44,"n_cols":10,"rows_kept":44,"merged":[[0,4,0,9],[1,2,1,9],[3,4,3,9],[4,3,4,9],[5,4,5,9],[6,3,6,9],[7,0,7,9],[8,0,8,9],[9,0,9,9],[10,0,10,9],[11,0,11,9],[12,6,12,9],[14,0,14,9],[15,0,16,0],[15,1,16,1],[15,8,16,8],[15,9,16,9],[17,0,18,0],[17,1,18,1],[17,8,18,8],[17,9,18,9],[19,0,20,0],[19,1,20,1],[19,8,20,8],[19,9,20,9],[21,0,22,0],[21,1,22,1],[21,8,22,8],[21,9,22,9],[23,0,24,0],[23,1,24,1],[23,8,24,8],[23,9,24,9],[25,0,26,0],[25,1,26,1],[25,8,26,8],[25,9,26,9],[27,0,28,0],[27,1,28,1],[27,8,28,8],[27,9,28,9],[29,0,30,0],[29,1,30,1],[29,8,30,8],[29,9,30,9],[31,0,32,0],[31,1,32,1],[31,8,32,8],[31,9,32,9],[32,2,32,4],[33,0,34,0],[33,1,34,1],[33,8,34,8],[33,9,34,9],[34,2,34,4],[35,0,35,9],[36,0,37,0],[36,1,37,1],[36,8,37,8],[36,9,37,9],[38,0,39,0],[38,1,39,1],[38,8,39,8],[38,9,39,9],[39,2,39,4],[40,0,40,9],[41,0,42,0],[41,1,42,1],[41,8,42,8],[41,9,42,9],[43,1,43,2],[43,4,43,7]]}
[{"$nulls":4},"Приложение №1"]
[null,null,"к приказу МКУ «Управление образования  ЕМР» "]
[]
[{"$nulls":4},"УТВЕРЖДАЮ"]
[{"$nulls":3},"Начальник МКУ \"Управление образования ЕМР\" "]
[{"$nulls":4},"ЗАРИПОВ Р.И."]
[{"$nulls":3},"    «_____» _________________ 2019 г."]
["ИТОГОВЫЙ ПРОТОКОЛ "]
["командного Первенства Елабужского муниципального района "]
["по лабиринтному ориентированию"]
["«Декабринт – 2019»"]
["ЗАЧЕТ СРЕДИ ОБРАЗОВАТЕЛЬНЫХ ОРГАНИЗАЦИЙ"]
["Спортивный зал МБОУ \"Средняя школа №6\" ЕМР РТ",{"$nulls":5},"29 ноября 2019 г. "]
["№ п/п","Школа","Класс (команда)","Участники","Предствитель команды","Время","Кол-во КП","Место","Сумма мест","МЕСТО"]
["ГОРОДСКИЕ ШКОЛЫ"]
[1,"МБОУ \"Средняя школа №5\" ЕМР РТ","8А-3","Ишимова Анна\nЮсупова Аделина\nМинеев Кирилл\nБелоусова Ксения","Хамидуллина А.Н. ","00:01:32",19,1,{"$f":"H16+H17","v":2},"I"]
[null,null,"4А-4","Однакина Анастасия\nЯмалетдинов Карим\nГайнуллин Богдан\nСавин Захар","Хамидуллина А.Н. ","00:02:02",20,1]
[2,"МБОУ \"Средняя школа №10\" ЕМР РТ","5В-1","Красильников Дмитрий\nКорольков Владимир\nХанбеков Ратмир\nБарышникова Ксения","Горшунова Е.В. ","00:02:21",22,2,{"$f":"H18+H19","v":5},"II"]
[null,null,"4К-1","Аксареева Виктория\nПензина Виктория\nИвлеева Ульяна\nХусаинов Ренат","Горшунова Е.В. ","00:03:00",15,3]
[3,"МБОУ \"Средняя школа №3\" ЕМР РТ","8Б-3","Алешин Роман\nАхметзянова Арина\nФайзуллин Салават\nАлексеев никита","Горшунова Е.В. ","00:02:40",15,3,{"$f":"H20+H21","v":6},"III"]
[null,null,"6К-1","Мансуров Марат\nМокшин Олег\nГилазутдинов Вильдан\nБоловина Дарина","Сидорова А.С.","00:02:06",21,3]
[4,"МБОУ \"Средняя школа №8\" ЕМР РТ","9А","Чегодаева Дарья\nАнашина Валерия\nБеловицкая Диана\nШаммедова Милана","Романенко Е.А. ","00:02:35",15,6,{"$f":"H22+H23","v":12},4]
[null,null,"3А-4В","Хасанов Ильфат\nПеревозчиков Владислав\nСаликаева Кира\nЗайцев Вячеслав","Исмагилова В.Н.","00:03:00",14,6]
[5,"МБОУ \"Средняя школа №1\" ЕМР РТ","3А-1","Валиева Ангелина\nВалиев Радмир\nГазизов Руслан\nХакимов Эмиль","Степанова О.Н.","00:03:00",18,2,{"$f":"H24+H25","v":15},5]
[null,null,"5Б-2","Кудрявцева Татьяна\nГиздатуллина Лейла\nРезвяков Станислав\nМартынов Данил","Лемасова Р.М.","00:02:52",15,13]
[6,"МБОУ \"Средняя школа №6\" ЕМР РТ","6Б-1","Десятова Анастасия\nТарасова Ангелина \nКобелев Артем\nРябова Динара","Захарова Р.Р.","00:01:49",23,1,{"$f":"H26+H27","v":20},6]
[null,null,"4Б","Ермошкин Иван\nТюняев Илья\nЗиганшин Адель\nАхтямов Тимур","Исмагилова В.Н.","00:02:14",9,19]
[7,"МБОУ \"Гимназия №1 - Центр национального образования\" ЕМР РТ","9А","Раимова Альбина\nМахмутова Лилия\nГумеров Ильяс\nНабиуллин Ильмир","Ибрагимов Р.К.","00:02:00",19,5,{"$f":"H28+H29","v":43},7]
[null,null,"6Б","Кадырова Хаят\nАзизов Мехроб\nПрокопьева Илона\nМахмутова Алия","Ибрагимов Р.К.","00:02:25",11,38]
[8,"МБОУ \"Средняя школа №9\" ЕМР РТ","11А,В","Пракудина Полина\nСедунов Никита\nУвин Михаил\nЕфремова Алина","Мальчиков С.А. ","00:01:11",16,10,{"$f":"H30+H31","v":46},8]
[null,null,"5Б","Крешков Игорь\nМагай Никита\nМуртазин Шамиль\nХамидуллина Элина","Мальчиков С.А. ","00:01:15",6,36]
[9,"МБОУ\" Гимназия №4\" ЕМР РТ","5Б-1","Хидирян Эмилия\nШлыкова Виктория\nВассанова Евгения\nАчинцева Элина","Искаков О.В.","00:01:53",16,6,{"$f":"H32+H33","v":6},9]
[null,null,"Результат другой возрастной группы"]
[10,"МБОУ \"Средняя школа №2\" ЕМР РТ","7Б-1","Ермошкин Федор\nБикмухаметов Наиль\nАлиева Диляра\nЧиркунова Лидия","Горшунова Е.В. ","00:01:09",19,14,{"$f":"H34+H35","v":14},10]
[null,null,"Результат другой возрастной группы"]
["СЕЛЬСКИЕ ШКОЛЫ"]
[1,"МБОУ\" Танаевская средняя школа\" ЕМР РТ","7-2","Бурдин Леонид\nНаседкин Вадим\nРезвякова Елизавета\nПерусова Карина","Клинова А.А.","00:02:41",20,4,{"$f":"H37+H38","v":12},"I"]
[null,null,"2-1","Клинов Елизар\nКрасильников Никита\nМиннахметова Азалия\nАйкашева Дарья","Клинова А.А.","00:02:35",12,8]
[2,"МБОУ \"Основная школа №11\" ЕМР РТ","2-4","Гизатуллина Элина\nШарипова Валерия\nБиджосян Давид\nИльясов Инсаф","Лобанова Л.А.","00:02:35",15,10,10,"II"]
[null,null,"Результат другой возрастной группы"]
["УЧРЕЖДЕНИЯ ДОПОЛНИТЕЛЬНОГО ОБРАЗОВАНИЯ"]
[1,"МБУ ДО \"ЦДЮТиЭ \"Юлдаш\" ЕМР РТ","ср.","Шубин Никита\nЯтов Максим\nКамнева Арина\nВасильев Арсений","Исмагилова В.Н.","00:02:58",15,24,{"$f":"H42+H43","v":50},"I"]
[null,null,"мл.","Соколов Вадим\nМазитов Артем\nВалиев Арслан\nТюняев Илья","Закирова Л.В.","00:02:04",17,26]
[null,"Главный судья",null,null,"Закирова Л.В."]